bitfinex/quotes_BTCUSD_20240815
["timestamp","ask_amount","ask_price","bid_price","bid_amount"]
[1723745986959,0.08577727,57724.0,57722.0,0.17155454]
[1723745987155,0.08577727,57724.0,57723.0,0.19039645]
[1723745987377,0.04468253,57726.0,57725.0,0.519705]
[1723745987597,0.0107214,57739.0,57737.0,0.519597]
[1723745987598,0.0446867,57738.0,57737.0,0.519597]
[1723745987803,0.0007214,57739.0,57738.0,0.173196]
[1723745988023,0.0007214,57739.0,57738.0,0.519588]
[1723745988024,0.01607356,57739.0,57738.0,0.519588]
[1723745988230,0.01607356,57739.0,57738.0,1.06053454]
[1723745988433,0.01607356,57739.0,57738.0,1.18589799]
[1723745988846,0.01607408,57739.0,57738.0,1.18589799]
[1723745989255,0.02007408,57739.0,57738.0,1.18589799]
[1723745989472,0.02007408,57739.0,57738.0,0.83950599]
[1723745989684,0.01607408,57739.0,57738.0,1.24700599]
[1723745989898,0.01607408,57739.0,57738.0,1.93978999]
[1723745990105,0.05714109,57748.0,57746.0,1.212204]
[1723745990106,0.04471381,57747.0,57746.0,1.212204]
[1723745990322,0.00904201,57749.0,57746.0,0.29277494]
[1723745990540,0.01,57748.0,57738.0,0.65786345]
[1723745990761,0.00904201,57749.0,57748.0,0.519498]
[1723745990966,0.00904201,57749.0,57748.0,0.69105254]
[1723745991221,0.00904201,57749.0,57748.0,0.43682579]
[1723745991428,0.00904201,57749.0,57748.0,0.24065979]
[1723745991657,0.00904201,57749.0,57748.0,0.69105254]
[1723745991866,0.00904201,57749.0,57748.0,1.06038454]
[1723745992079,0.00904201,57749.0,57748.0,1.40671654]
[1723745992311,0.00904201,57749.0,57748.0,0.69105254]
[1723745992520,0.00904201,57749.0,57748.0,0.71405254]
[1723745992752,0.00904201,57749.0,57748.0,1.13178979]
[1723745992753,0.01004201,57749.0,57748.0,1.13178979]
[1723745992977,0.01004201,57749.0,57726.0,0.4173005]
[1723745992978,0.1838,57748.0,57707.0,0.191]
[1723745993200,0.25906327,57708.0,57687.0,0.346696]
[1723745993402,0.02,57705.0,57688.0,4.061556]
[1723745993630,0.08577727,57705.0,57688.0,0.09804594]
[1723745993856,0.3804,57709.0,57688.0,0.09804594]
[1723745993857,0.01,57709.0,57696.0,0.17332]
[1723745994128,0.05711255,57715.0,57712.0,0.173272]
[1723745994336,0.10577727,57719.0,57688.0,0.09804594]
[1723745994337,0.02761769,57714.0,57713.0,0.519813]
[1723745994566,0.02761769,57714.0,57713.0,0.0519813]
[1723745994792,0.02761769,57714.0,57713.0,0.93434884]
[1723745994963,0.01,57718.0,57713.0,0.36255454]
[1723745995228,0.08577727,57716.0,57715.0,0.173265]
[1723745995432,0.01,57722.0,57716.0,0.05358195]
[1723745995645,0.08577727,57718.0,57717.0,0.17155454]
[1723745995865,0.0276318,57718.0,57717.0,0.69133154]
[1723745996080,0.08577727,57724.0,57723.0,0.173241]
[1723745996282,0.02763384,57724.0,57723.0,0.69127754]
[1723745996490,0.02763384,57724.0,57723.0,0.76040529]
[1723745996702,0.02763384,57724.0,57723.0,1.45336929]
[1723745997201,0.08577727,57737.0,57727.0,0.346457]
[1723745997202,0.01,57732.0,57727.0,0.346457]
[1723745997412,0.02763933,57731.0,57728.0,0.20620024]
[1723745997627,0.02763933,57731.0,57713.0,0.191]
[1723745997628,0.03763933,57730.0,57713.0,0.191]
[1723745997830,0.01,57715.0,57714.0,0.17155454]
[1723745998069,0.01,57715.0,57681.0,0.000826]
[1723745998070,0.01,57704.0,57696.0,0.346643]
[1723745998289,0.02763933,57703.0,57698.0,0.173314]
[1723745998522,0.02763933,57702.0,57701.0,0.173307]
[1723745998807,0.02763933,57702.0,57681.0,0.000826]
[1723745998808,0.60183933,57702.0,57681.0,0.000826]
[1723745999008,0.60183933,57702.0,57682.0,0.20631074]
[1723745999009,0.01,57688.0,57682.0,0.20631074]
[1723745999235,0.08577727,57694.0,57682.0,0.20631074]
[1723745999236,0.02763933,57687.0,57686.0,0.173352]
[1723745999448,0.08577727,57694.0,57686.0,0.22514519]
[1723745999449,0.10577727,57694.0,57686.0,0.22514519]
[1723745999661,0.02,57694.0,57687.0,0.34490254]
[1723745999878,0.02,57694.0,57690.0,0.173338]
[1723745999879,0.02761587,57693.0,57690.0,0.173338]
[1723746000085,0.02761587,57692.0,57691.0,0.34489054]
[1723746000263,0.02761587,57692.0,57691.0,0.69156454]
[1723746000492,0.02761587,57692.0,57691.0,0.34489054]
[1723746000911,0.02761587,57692.0,57682.0,0.191]
[1723746000912,0.02,57690.0,57663.0,0.38793858]
[1723746001122,0.38617041,57692.0,57648.0,0.5885]
[1723746001123,0.10577727,57682.0,57650.0,0.00821]
[1723746001547,0.13912198,57682.0,57681.0,0.174193]
[1723746001746,0.13912198,57682.0,57681.0,0.0182453]
[1723746001747,0.19048751,57682.0,57681.0,0.0182453]
[1723746001972,0.002,57685.0,57681.0,0.17238054]
[1723746001973,0.02,57685.0,57681.0,0.17238054]
[1723746002192,0.09577727,57682.0,57681.0,0.000826]
[1723746002418,0.003,57692.0,57681.0,0.17238054]
[1723746002629,0.04296798,57691.0,57690.0,0.52002]
[1723746002834,0.05711011,57705.0,57704.0,0.346596]
[1723746003042,0.10150671,57710.0,57701.0,0.194]
[1723746003254,0.02763551,57709.0,57708.0,0.51812654]
[1723746003462,0.56229913,57709.0,57692.0,0.57]
[1723746003704,0.56229913,57709.0,57698.0,0.519948]
[1723746003705,0.08577727,57699.0,57698.0,0.519948]
[1723746003908,0.10577727,57693.0,57682.0,0.5642]
[1723746004143,0.10577727,57693.0,57674.0,0.346774]
[1723746004144,0.02763551,57692.0,57683.0,0.0566026]
[1723746004383,0.10577727,57693.0,57683.0,0.17155454]
[1723746004384,0.01,57686.0,57683.0,0.17155454]
[1723746004584,0.01,57686.0,57681.0,0.000826]
[1723746004585,0.53466362,57684.0,57681.0,0.001826]
[1723746004799,0.53466362,57684.0,57657.0,0.346877]
[1723746004800,0.01,57682.0,57621.0,0.12839633]
[1723746005010,0.02,57647.0,57621.0,0.02719006]
[1723746005213,0.346868,57659.0,57622.0,0.1955]
[1723746005214,0.09806591,57646.0,57622.0,0.1955]
[1723746005427,0.07233743,57645.0,57630.0,0.173517]
[1723746005642,0.04464347,57644.0,57623.0,0.0640998]
[1723746005861,0.2414,57654.0,57623.0,0.0640998]
[1723746005862,0.02759788,57643.0,57634.0,0.17155454]
[1723746006071,0.02759788,57643.0,57624.0,0.03289347]
[1723746006072,0.13042074,57652.0,57637.0,0.3896]
[1723746006344,0.08577727,57638.0,57637.0,0.001]
[1723746006559,0.04760344,57638.0,57637.0,0.001]
[1723746006770,0.02760344,57638.0,57637.0,0.001]
[1723746007199,0.02760344,57638.0,57637.0,0.34605354]
[1723746007407,0.388,57656.0,57637.0,0.34605354]
[1723746007408,0.02760344,57641.0,57637.0,0.20715989]
[1723746007669,0.02760344,57649.0,57638.0,0.17155454]
[1723746007871,0.02,57646.0,57638.0,0.17155454]
[1723746008084,0.02760344,57648.0,57639.0,0.05195565]
[1723746008293,0.02,57638.0,57623.0,0.00822]
[1723746008502,0.01693878,57637.0,57623.0,0.048002]
[1723746008712,0.02760344,57644.0,57634.0,0.173508]
[1723746008713,0.08577727,57636.0,57634.0,0.173508]
[1723746008946,0.01651853,57629.0,57623.0,0.00822]
[1723746009155,0.01651853,57633.0,57624.0,0.17155454]
[1723746009359,0.08577727,57636.0,57624.0,0.17155454]
[1723746009360,0.01651853,57631.0,57624.0,0.17155454]
[1723746009591,0.01651853,57631.0,57623.0,0.048002]
[1723746009592,0.20351853,57629.0,57623.0,0.00822]
[1723746009786,0.01651853,57627.0,57623.0,0.00822]
[1723746009987,0.01651853,57629.0,57624.0,0.17155454]
[1723746010206,0.01651853,57628.0,57624.0,0.17155454]
[1723746010411,6e-07,57638.0,57637.0,0.173499]
[1723746010604,6e-07,57638.0,57637.0,0.36240344]
[1723746010809,0.01651913,57638.0,57637.0,0.17155454]
[1723746011024,6e-07,57638.0,57637.0,1.03905154]
[1723746011234,0.1022958,57646.0,57637.0,0.17155454]
[1723746011437,0.01651853,57639.0,57629.0,0.1965]
[1723746011642,0.01651853,57645.0,57638.0,0.17155454]
[1723746011877,0.08577727,57652.0,57638.0,0.17155454]
[1723746012090,0.08577727,57652.0,57639.0,0.01715545]
[1723746012091,0.01651853,57646.0,57639.0,0.01715545]
[1723746012306,0.08577727,57652.0,57639.0,0.01715545]
[1723746012307,0.01651853,57648.0,57647.0,0.173469]
[1723746012509,0.01651853,57648.0,57647.0,0.68696254]
[1723746012721,0.08577727,57652.0,57647.0,0.68696254]
[1723746012722,0.1022958,57652.0,57651.0,0.173457]
[1723746012942,0.08577727,57669.0,57663.0,0.1965]
[1723746012943,0.01651853,57669.0,57663.0,0.1965]
[1723746013182,0.01651853,57669.0,57652.0,0.18890024]
[1723746013367,0.51466362,57679.0,57672.0,0.173394]
[1723746013368,0.01651853,57673.0,57672.0,0.173394]
[1723746013571,0.01651853,57672.0,57671.0,0.173395]
[1723746013792,0.01651853,57677.0,57676.0,0.173382]
[1723746014117,0.01651853,57673.0,57672.0,0.34494854]
[1723746014288,0.08577727,57687.0,57672.0,0.17155454]
[1723746014289,0.01651853,57674.0,57672.0,0.17155454]
[1723746014521,0.00651853,57663.0,57662.0,0.173424]
[1723746014731,0.00344616,57672.0,57653.0,0.346901]
[1723746014948,0.08577727,57680.0,57654.0,0.01962132]
[1723746015195,0.08577727,57686.0,57654.0,0.01962132]
[1723746015196,0.01651853,57686.0,57655.0,0.49607727]
[1723746015394,0.51466362,57689.0,57688.0,0.520038]
[1723746015594,0.51466362,57689.0,57688.0,0.86673]
[1723746015797,0.00651853,57690.0,57689.0,0.866715]
[1723746016030,0.01651853,57698.0,57697.0,0.346638]
[1723746016252,0.01651853,57702.0,57701.0,0.173307]
[1723746016457,0.01651853,57702.0,57677.0,0.346758]
[1723746016458,0.02551853,57686.0,57672.0,0.1969]
[1723746016676,0.02551853,57686.0,57655.0,0.878]
[1723746016677,0.00344616,57704.0,57685.0,0.51466362]
[1723746016887,0.4153,57722.0,57683.0,0.4151]
[1723746016888,0.4153,57722.0,57707.0,0.519867]
[1723746017138,0.51466362,57717.0,57707.0,0.866445]
[1723746017562,0.002,57729.0,57707.0,1.213023]
[1723746017763,0.4153,57730.0,57707.0,1.236023]
[1723746017974,0.4153,57730.0,57707.0,1.582601]
[1723746018198,0.08668588,57725.0,57707.0,1.03799954]
[1723746018401,0.08668588,57725.0,57707.0,0.69142154]
[1723746018857,0.08668588,57725.0,57707.0,1.03799954]
[1723746019132,0.08668588,57725.0,57707.0,0.69142154]
[1723746019365,0.08577727,57724.0,57707.0,1.06099954]
[1723746019563,0.08577727,57724.0,57707.0,1.18560949]
[1723746019763,0.08577727,57724.0,57707.0,1.53218749]
[1723746020178,0.08577727,57718.0,57707.0,0.17155454]
[1723746020424,0.002,57715.0,57707.0,0.17155454]
[1723746020640,0.002,57715.0,57693.0,0.3962]
[1723746020641,0.4072,57707.0,57683.0,0.3962]
[1723746020850,0.002,57697.0,57688.0,0.173343]
[1723746021052,0.002,57699.0,57690.0,0.173337]
[1723746021256,0.49297727,57707.0,57692.0,0.173333]
[1723746021257,0.002,57698.0,57692.0,0.173333]
[1723746021463,0.6053,57707.0,57693.0,0.17155454]
[1723746021718,0.00290751,57708.0,57698.0,0.346628]
[1723746021929,0.00290751,57708.0,57684.0,0.08577727]
[1723746021930,0.014,57707.0,57699.0,0.20621734]
[1723746022135,0.014,57707.0,57694.0,0.346656]
[1723746022136,0.014,57707.0,57706.0,0.519876]
[1723746022371,0.014,57707.0,57706.0,1.03801454]
[1723746022571,0.014,57707.0,57706.0,1.54411599]
[1723746022800,0.014,57707.0,57706.0,2.01369999]
[1723746023017,0.00090751,57708.0,57707.0,1.213023]
[1723746023227,0.00090751,57708.0,57707.0,2.28651081]
[1723746023454,0.00090751,57708.0,57707.0,2.02571008]
[1723746023983,0.0022,57739.0,57738.0,1.212372]
[1723746023984,0.0002,57739.0,57738.0,1.212372]
[1723746024437,0.0002,57739.0,57738.0,1.681764]
[1723746024888,0.00904201,57749.0,57748.0,1.212162]
[1723746025096,0.00904201,57766.0,57748.0,1.89831654]
[1723746025317,0.00904201,57766.0,57749.0,0.60037727]
[1723746025546,0.00904201,57766.0,57749.0,0.18577727]
[1723746025759,0.00904201,57766.0,57749.0,0.19577727]
[1723746025978,0.00904201,57766.0,57749.0,0.92577727]
[1723746026185,0.00904201,57766.0,57749.0,0.73]
[1723746026386,0.00904201,57766.0,57749.0,0.74052365]
[1723746026604,0.00904201,57766.0,57749.0,0.84052365]
[1723746026848,0.00904201,57766.0,57749.0,0.87636025]
[1723746027063,0.00904201,57766.0,57749.0,0.73]
[1723746027494,0.00904201,57766.0,57749.0,0.9]
[1723746027693,0.00904201,57766.0,57749.0,0.1]
[1723746027911,0.00904201,57766.0,57749.0,0.804]
[1723746027912,0.0012,57759.0,57749.0,0.804]
[1723746028323,0.0012,57759.0,57749.0,0.82461]
[1723746028324,0.0002,57759.0,57749.0,0.82461]
[1723746028737,0.0012,57759.0,57749.0,0.804]
[1723746029204,0.51466362,57758.0,57746.0,0.01013275]
[1723746029473,0.0002,57759.0,57748.0,0.346329]
[1723746029676,0.0002,57759.0,57743.0,0.878]
[1723746030107,0.08577727,57758.0,57749.0,0.346325]
[1723746030318,0.08577727,57758.0,57743.0,0.878]
[1723746030528,0.0002,57759.0,57758.0,0.346272]
[1723746030735,0.0002,57759.0,57758.0,0.69096254]
[1723746031154,0.0002,57759.0,57758.0,1.03723454]
[1723746031363,0.0002,57759.0,57758.0,1.13723454]
[1723746031576,0.0002,57759.0,57758.0,1.48350654]
[1723746031786,0.009053,57767.0,57766.0,0.173112]
[1723746031992,0.009053,57767.0,57766.0,1.86083854]
[1723746032208,0.009053,57767.0,57766.0,2.20706254]
[1723746032657,0.009053,57767.0,57766.0,0.25343861]
[1723746032871,0.01,57762.0,57710.0,0.0927]
[1723746033085,0.08577727,57738.0,57730.0,0.346437]
[1723746033326,0.08577727,57738.0,57725.0,0.519705]
[1723746033327,0.08577727,57726.0,57725.0,0.519705]
[1723746033527,0.08577727,57738.0,57711.0,1.1945]
[1723746033528,0.08577727,57738.0,57723.0,0.878]
[1723746033737,0.08577727,57744.0,57723.0,1.1945]
[1723746033866,0.51466362,57743.0,57723.0,1.1945]
[1723746034072,0.08577727,57744.0,57723.0,1.1945]
[1723746034073,0.08577727,57737.0,57736.0,0.173202]
[1723746034284,0.08577727,57744.0,57743.0,0.173181]
[1723746034487,0.08577727,57756.0,57749.0,0.519489]
[1723746034690,0.60044089,57762.0,57749.0,0.17155454]
[1723746034903,0.60044089,57762.0,57712.0,0.3]
[1723746034904,0.010053,57767.0,57766.0,0.173112]
[1723746035098,0.010053,57767.0,57766.0,1.91511454]
[1723746035324,0.009053,57767.0,57766.0,1.93811454]
[1723746035525,0.009053,57767.0,57766.0,2.45363954]
[1723746035787,0.009053,57767.0,57766.0,2.10741554]
[1723746036210,0.0002,57779.0,57778.0,1.211532]
[1723746036382,0.0002,57779.0,57778.0,2.01493454]
[1723746036596,0.0002,57799.0,57798.0,0.51886052]
[1723746036803,0.0002,57799.0,57798.0,1.13644706]
[1723746037316,0.0002,57799.0,57798.0,1.82851106]
[1723746037528,1e-06,57799.0,57798.0,1.87530969]
[1723746037817,0.51466362,57818.0,57799.0,0.08648672]
[1723746038060,0.51466362,57810.0,57799.0,0.1]
[1723746038291,0.0002,57819.0,57818.0,0.691826]
[1723746038516,0.0002,57819.0,57818.0,1.050956]
[1723746038765,0.0002,57819.0,57813.0,0.172971]
[1723746038968,0.0002,57819.0,57778.0,0.532228]
[1723746038969,0.001,57779.0,57778.0,0.532228]
[1723746039208,0.08577727,57787.0,57778.0,1.1945]
[1723746039386,0.00090751,57799.0,57779.0,0.51466362]
[1723746039677,0.00090751,57799.0,57798.0,0.86508]
[1723746039847,0.00090751,57799.0,57798.0,2.05958]
[1723746040057,0.00090751,57799.0,57798.0,2.57716654]
[1723746040198,0.0002,57819.0,57817.0,0.172959]
[1723746040371,0.0002,57819.0,57817.0,0.69043254]
[1723746040571,0.0002,57819.0,57818.0,0.518869]
[1723746040835,0.0002,57819.0,57818.0,1.13633654]
[1723746041265,0.0002,57819.0,57818.0,0.27155454]
[1723746041470,0.0002,57819.0,57818.0,0.17155454]
[1723746041674,0.019031,57824.0,57818.0,0.27155454]
[1723746041675,0.005231,57824.0,57818.0,0.27155454]
[1723746041873,0.005231,57824.0,57823.0,0.59037854]
[1723746042077,0.005231,57824.0,57823.0,1.05002102]
[1723746042287,0.005231,57824.0,57823.0,2.98867002]
[1723746042494,0.005231,57824.0,57823.0,2.94552754]
[1723746042686,0.005231,57824.0,57823.0,2.59964454]
[1723746043316,0.006231,57824.0,57823.0,2.26676154]
[1723746043518,0.005231,57824.0,57823.0,2.25376154]
[1723746043829,0.006231,57824.0,57823.0,2.26676154]
[1723746044037,0.005231,57824.0,57823.0,2.59964454]
[1723746044244,0.005231,57824.0,57823.0,2.25376154]
[1723746044942,0.005231,57824.0,57823.0,1.90787854]
[1723746045277,0.005231,57824.0,57823.0,1.59137854]
[1723746045656,0.006231,57824.0,57823.0,2.29514454]
[1723746045885,0.006231,57824.0,57823.0,1.94926154]
[1723746046095,0.015231,57824.0,57823.0,0.878]
[1723746046296,0.015231,57824.0,57728.0,0.7532]
[1723746046297,0.01,57823.0,57769.0,0.03461]
[1723746046499,0.02160188,57824.0,57784.0,1.413922]
[1723746046500,0.08577727,57809.0,57784.0,1.413922]
[1723746046849,0.08577727,57818.0,57784.0,1.413922]
[1723746046850,0.08577727,57818.0,57817.0,0.864797]
[1723746047061,0.08577727,57818.0,57817.0,1.210716]
[1723746047486,0.005231,57824.0,57823.0,0.864707]
[1723746047702,0.005231,57824.0,57823.0,1.38214454]
[1723746047892,0.005231,57824.0,57823.0,0.17155454]
[1723746048104,0.005231,57824.0,57815.0,0.878]
[1723746048105,0.01,57817.0,57815.0,0.878]
[1723746048233,0.01,57812.0,57752.0,0.1827]
[1723746048450,0.10577727,57816.0,57747.0,0.1]
[1723746048451,0.08577727,57798.0,57797.0,1.37975862]
[1723746048647,0.08577727,57798.0,57797.0,0.69061154]
[1723746048854,0.08577727,57798.0,57797.0,0.34457354]
[1723746049263,0.08577727,57810.0,57809.0,0.518949]
[1723746049509,0.08577727,57810.0,57809.0,0.69050354]
[1723746049823,0.08577727,57816.0,57815.0,0.518895]
[1723746049936,0.08577727,57816.0,57815.0,1.38230954]
[1723746050501,0.08577727,57816.0,57815.0,0.81344954]
[1723746050701,0.08577727,57816.0,57815.0,1.50530954]
[1723746051488,0.08577727,57816.0,57815.0,0.27155454]
[1723746051690,0.11115216,57816.0,57815.0,0.17155454]
[1723746051893,0.11115216,57816.0,57805.0,0.1]
[1723746052092,0.01537489,57815.0,57814.0,0.172968]
[1723746052243,0.08677727,57816.0,57815.0,0.518895]
[1723746052454,0.005231,57824.0,57823.0,0.172941]
[1723746052660,0.04830376,57824.0,57823.0,0.864707]
[1723746052870,0.4092,57835.0,57823.0,0.864707]
[1723746052871,0.05729183,57847.0,57836.0,0.864512]
[1723746053069,0.10126709,57837.0,57836.0,1.310317]
[1723746053386,0.01548982,57837.0,57836.0,1.82767654]
[1723746053584,0.00011,57837.0,57836.0,1.82767654]
[1723746053788,0.00011,57837.0,57836.0,1.48187154]
[1723746054058,0.01548864,57837.0,57836.0,1.48187154]
[1723746054259,0.01548864,57837.0,57836.0,0.27155454]
[1723746054390,0.05318419,57837.0,57830.0,0.878]
[1723746054592,0.05318419,57837.0,57823.0,0.3165]
[1723746054593,0.08577727,57831.0,57823.0,0.4165]
[1723746054806,0.04307419,57830.0,57829.0,0.172921]
[1723746055005,0.01537864,57830.0,57829.0,0.518768]
[1723746055369,0.08577727,57831.0,57830.0,0.518761]
[1723746055574,0.01,57826.0,57773.0,0.0860725]
[1723746055703,0.6261,57830.0,57776.0,0.03461]
[1723746055704,0.09577727,57816.0,57776.0,0.03461]
[1723746055908,0.08577727,57802.0,57801.0,0.519021]
[1723746056129,0.08577727,57802.0,57801.0,2.45539961]
[1723746056345,0.08577727,57816.0,57801.0,1.24435061]
[1723746056675,0.08577727,57816.0,57815.0,0.518895]
[1723746056818,0.08577727,57816.0,57815.0,1.210755]
[1723746056819,0.12883913,57816.0,57815.0,1.210755]
[1723746057034,0.12883917,57816.0,57815.0,1.21058192]
[1723746057278,0.10115033,57816.0,57815.0,1.21058192]
[1723746057488,0.13883957,57816.0,57813.0,0.04020809]
[1723746057658,0.03,57814.0,57813.0,0.04020809]
[1723746057864,0.50984526,57814.0,57813.0,0.04020809]
[1723746058303,0.08784526,57814.0,57813.0,1.07661763]
[1723746058513,0.0430623,57814.0,57813.0,1.07661763]
[1723746058715,0.0530623,57814.0,57813.0,0.04020809]
[1723746058934,0.09785151,57814.0,57813.0,0.04020809]
[1723746059125,0.09785151,57814.0,57813.0,0.21176263]
[1723746059332,0.11785151,57814.0,57813.0,0.21276263]
[1723746059540,0.11785151,57814.0,57813.0,0.04120809]
[1723746059541,0.09785151,57814.0,57813.0,0.04120809]
[1723746059827,0.01537306,57814.0,57813.0,0.38473363]
[1723746060028,0.01637306,57814.0,57813.0,1.08861763]
[1723746060186,0.01537306,57814.0,57813.0,1.09961763]
[1723746060380,0.01537306,57814.0,57813.0,1.44555963]
[1723746060599,0.01537306,57814.0,57813.0,1.79150163]
[1723746060751,0.05724177,57829.0,57828.0,0.864632]
[1723746060949,0.08782839,57829.0,57828.0,1.50503954]
[1723746061158,0.01536799,57829.0,57828.0,1.50503954]
[1723746061400,0.14304001,57831.0,57830.0,0.864602]
[1723746061605,0.17360759,57831.0,57830.0,0.51739554]
[1723746061809,0.18360759,57831.0,57830.0,0.17155454]
[1723746061980,0.01,57824.0,57823.0,0.172941]
[1723746062189,0.09783032,57824.0,57817.0,0.345917]
[1723746062532,0.08577727,57831.0,57822.0,0.864722]
[1723746062533,0.10114583,57823.0,57822.0,0.864722]
[1723746062763,0.10114583,57823.0,57822.0,1.210611]
[1723746062968,0.08677727,57831.0,57830.0,0.864602]
[1723746063192,0.01537186,57831.0,57830.0,2.17367954]
[1723746063401,0.01537186,57831.0,57830.0,2.22497391]
[1723746063611,4e-07,57840.0,57839.0,0.51868]
[1723746063814,0.52369462,57856.0,57855.0,0.518536]
[1723746064016,0.52369462,57856.0,57855.0,1.48147254]
[1723746064017,0.55138698,57856.0,57855.0,1.48147254]
[1723746064222,0.03672336,57856.0,57855.0,1.82716354]
[1723746064425,0.009031,57857.0,57855.0,1.82716354]
[1723746064426,0.009031,57857.0,57856.0,0.518527]
[1723746064654,0.009031,57857.0,57856.0,1.48145154]
[1723746065092,0.00906401,57862.0,57858.0,0.864182]
[1723746065318,0.00906401,57862.0,57858.0,1.50440954]
[1723746065523,0.00906401,57862.0,57858.0,1.85008254]
[1723746065728,0.00906401,57862.0,57858.0,1.05873654]
[1723746065931,0.00906401,57862.0,57858.0,1.40440954]
[1723746066137,0.00906401,57862.0,57858.0,1.03573654]
[1723746066138,0.01,57861.0,57858.0,1.03573654]
[1723746066355,0.01,57861.0,57858.0,0.69006354]
[1723746066559,0.00906401,57862.0,57858.0,1.39540954]
[1723746066763,0.00906401,57862.0,57858.0,0.69006354]
[1723746066965,0.01,57853.0,57852.0,0.172854]
[1723746067179,0.08577727,57853.0,57852.0,0.864272]
[1723746067420,0.08577727,57853.0,57852.0,1.209981]
[1723746067849,0.00926401,57859.0,57858.0,0.864182]
[1723746068055,0.00926401,57859.0,57858.0,1.38140954]
[1723746068265,0.00926401,57859.0,57858.0,1.48140954]
[1723746068470,0.00926401,57859.0,57858.0,1.85008254]
[1723746068667,0.00926401,57859.0,57858.0,2.19575554]
[1723746068840,0.00926401,57859.0,57858.0,1.86408254]
[1723746069054,0.00906401,57869.0,57868.0,1.555263]
[1723746069252,1e-08,57869.0,57868.0,2.19543154]
[1723746069454,0.009031,57874.0,57873.0,1.555128]
[1723746069455,1e-06,57874.0,57873.0,1.555128]
[1723746069615,1e-06,57874.0,57873.0,2.44141654]
[1723746069814,1e-06,57874.0,57873.0,2.83941008]
[1723746070025,0.00906401,57887.0,57876.0,1.555047]
[1723746070230,0.00906401,57887.0,57878.0,1.209439]
[1723746070231,1e-06,57879.0,57878.0,1.209439]
[1723746070610,1e-06,57879.0,57878.0,2.19510154]
[1723746070809,1e-06,57879.0,57878.0,2.66517254]
[1723746071089,0.0653329,57911.0,57878.0,0.47148108]
[1723746071263,0.1861,57932.0,57878.0,0.47148108]
[1723746071264,0.51466362,57923.0,57915.0,0.517999]
[1723746071472,0.0104231,57916.0,57915.0,0.963332]
[1723746071671,0.0104231,57916.0,57915.0,1.308665]
[1723746072104,0.345016,57969.0,57915.0,1.308665]
[1723746072105,0.08577727,57931.0,57930.0,0.172622]
[1723746072321,0.96292911,57939.0,57932.0,0.517848]
[1723746072322,0.90556362,57939.0,57932.0,0.517848]
[1723746072533,0.00113885,57933.0,57932.0,0.78940254]
[1723746072745,0.00113885,57933.0,57932.0,1.13463454]
[1723746072992,0.00113885,57933.0,57932.0,1.47986654]
[1723746073191,0.00090421,57933.0,57932.0,1.50286654]
[1723746073433,0.00090421,57933.0,57932.0,1.13463454]
[1723746073666,0.00090421,57933.0,57932.0,1.14763454]
[1723746074075,0.00090421,57933.0,57932.0,1.16163454]
[1723746074076,0.00113885,57933.0,57932.0,1.16163454]
[1723746074302,0.00113885,57933.0,57932.0,1.52986654]
[1723746074499,0.00113885,57933.0,57932.0,1.50286654]
[1723746074703,0.00113885,57933.0,57932.0,1.84809854]
[1723746074911,0.0002,57939.0,57934.0,0.17261]
[1723746075159,0.0002,57939.0,57934.0,1.84804454]
[1723746075361,0.0002,57939.0,57934.0,1.50282454]
[1723746075580,0.0002,57939.0,57934.0,1.84804454]
[1723746075790,0.0002,57939.0,57934.0,1.50282454]
[1723746075998,0.0002,57939.0,57934.0,1.84804454]
[1723746076410,0.51486362,57959.0,57934.0,1.84804454]
[1723746076411,0.0002,57959.0,57958.0,1.207769]
[1723746076617,0.0002,57959.0,57934.0,0.30855454]
[1723746076618,0.0036231,57957.0,57934.0,0.30855454]
[1723746076821,0.0036231,57955.0,57954.0,0.517651]
[1723746077024,0.0002,57959.0,57948.0,0.1]
[1723746077025,0.0036231,57957.0,57948.0,0.1]
[1723746077234,0.3939,57940.0,57934.0,0.18555454]
[1723746077440,0.08577727,57935.0,57934.0,0.014]
[1723746077654,0.08577727,57935.0,57878.0,0.3]
[1723746077655,0.08577727,57935.0,57903.0,0.3887]
[1723746077860,0.08577727,57923.0,57922.0,0.172645]
[1723746078097,0.08577727,57923.0,57922.0,0.863227]
[1723746078280,0.08477727,57923.0,57922.0,0.863227]
[1723746078735,0.08577727,57929.0,57928.0,0.517884]
[1723746078930,0.08577727,57929.0,57928.0,0.68943854]
[1723746079153,0.08577727,57929.0,57928.0,0.34418254]
[1723746079384,0.08577727,57929.0,57928.0,1.03469454]
[1723746079794,0.08577727,57929.0,57910.0,0.345359]
[1723746079795,0.27517727,57929.0,57910.0,0.345359]
[1723746080012,0.08577727,57916.0,57911.0,0.17155454]
[1723746080424,0.1894,57914.0,57912.0,0.069135]
[1723746080646,0.1894,57914.0,57896.0,0.17155454]
[1723746080647,0.08577727,57906.0,57896.0,0.17155454]
[1723746080849,0.08577727,57892.0,57884.0,0.345517]
[1723746081061,0.08577727,57892.0,57885.0,0.17155454]
[1723746081062,0.08577727,57886.0,57885.0,0.17155454]
[1723746081271,0.48377727,57886.0,57885.0,0.68982254]
[1723746081476,0.48377727,57886.0,57885.0,0.069164]
[1723746081682,0.48377727,57886.0,57872.0,0.01019095]
[1723746081916,0.1894,57885.0,57884.0,0.518277]
[1723746082136,0.08577727,57898.0,57897.0,0.518161]
[1723746082345,0.08577727,57898.0,57873.0,0.1155794]
[1723746082346,0.08577727,57892.0,57873.0,0.069177]
[1723746082613,0.5874,57883.0,57875.0,0.51712254]
[1723746082816,0.5874,57883.0,57873.0,0.069177]
[1723746082817,0.08577727,57878.0,57877.0,0.34433454]
[1723746083021,0.5874,57883.0,57882.0,0.172765]
[1723746083244,0.5874,57883.0,57873.0,0.069177]
[1723746083457,0.08577727,57874.0,57873.0,0.241969]
[1723746083660,0.08577727,57874.0,57873.0,0.069177]
[1723746083889,0.08577727,57874.0,57873.0,0.073177]
[1723746084102,0.5874,57883.0,57882.0,0.172765]
[1723746084314,0.08577727,57892.0,57891.0,0.172738]
[1723746084522,0.398,57892.0,57891.0,1.03524454]
[1723746084741,0.48377727,57892.0,57883.0,0.0463024]
[1723746084949,0.48377727,57892.0,57873.0,0.069177]
[1723746084950,0.08577727,57885.0,57884.0,0.34431354]
[1723746085178,0.08577727,57885.0,57884.0,0.172759]
[1723746085380,0.398,57892.0,57891.0,0.172738]
[1723746085589,0.393,57892.0,57891.0,0.68976854]